Workbook

Sheet P&L
A1: AGILENT TECHNOLOGIES, INC.
A2: CONDENSED CONSOLIDATED STATEMENT OF OPERATIONS
A3: (In millions, except per share amounts)
A4: (Unaudited)
A5: PRELIMINARY
B8: Three Months Ended | F8: Three Months Ended
B9: January 31, | F9: January 31,
B10: 2020 | D10: 2019 | F10: 2019 | H10: 2018
A12: Net revenue | B12: $1,357 | D12: $1,284
A14: Costs and expenses:
A15: Cost of products and services | B15: 634 | D15: 577
A16: Research and development | B16: 104 | D16: 102
A17: Selling, general and administrative | B17: 404 | D17: 355
A18: Total costs and expenses | B18: =SUM(B15:B17) -> 1,142 | D18: =SUM(D15:D17) -> 1,034 | F18: =SUM(F15:F17) -> 0 | H18: =SUM(H15:H17) -> 0
A20: Income from operations | B20: =B12-B18 -> 215 | D20: =D12-D18 -> 250 | F20: =F12-F18 -> 0 | H20: =H12-H18 -> 0
A22: Interest income | B22: 3 | D22: 10
A23: Interest expense | B23: (20) | D23: (18)
A24: Other income (expense), net | B24: 21 | D24: 6
A26: Income before taxes | B26: =SUM(B20:B24) -> 219 | D26: =SUM(D20:D24) -> 248 | F26: =SUM(F20:F24) -> 0 | H26: =SUM(H20:H24) -> 0
A28: Provision for (benefit from) income taxes | B28: 22 | D28: (256)
A30: Net income | B30: =B26-B28 -> $197 | D30: =D26-D28 -> $504 | F30: =F26-F28 -> 0 | H30: =H26-H28 -> 0
A34: Net income per share:
A35: Basic | B35: =B30/B39 -> $0.64 | D35: =D30/D39 -> $1.58 | F35: =F30/F39 ->  | H35: =H30/H39 -> 
A36: Diluted | B36: =B30/B40 -> $0.63 | D36: =D30/D40 -> $1.57 | F36: =F30/F40 ->  | H36: =H30/H40 -> 
A38: Weighted average shares used in computing net income per share:
A39: Basic | B39: 310 | D39: 318
A40: Diluted | B40: 313 | D40: 322
A48: The preliminary income statement is estimated based on our current information.
A51: Page 1

Sheet Balance Sheet
A1: AGILENT TECHNOLOGIES, INC.
A2: CONDENSED CONSOLIDATED BALANCE SHEET
A3: (In millions, except par value and share amounts)
A4: (Unaudited)
A5: PRELIMINARY
E8: January 31, | G8: October 31,
E9: 2020 | G9: 2019
A10: ASSETS
A12: Current assets:
B13: Cash and cash equivalents | E13: $1,226 | G13: $1,382
B14: Accounts receivable, net | E14: 966 | G14: 930
B15: Inventory | E15: 706 | G15: 679
B16: Other current assets | E16: 204 | G16: 198
C17: Total current assets | E17: =SUM(E13:E16) -> 3,102 | G17: =SUM(G13:G16) -> 3,189
A19: Property, plant and equipment, net | E19: 844 | G19: 850
A20: Goodwill and other intangible assets, net | E20: =3589+1059 -> 4,648 | G20: =3593+1107 -> 4,700
A21: Long-term investments | E21: 118 | G21: 102
A22: Other assets | E22: 789 | G22: 611
C23: Total assets | E23: =SUM(E17:E22) -> $9,501 | G23: =SUM(G17:G22) -> $9,452
A25: LIABILITIES AND EQUITY
A27: Current liabilities:
B28: Accounts payable | E28: $329 | G28: $354
B29: Employee compensation and benefits | E29: 253 | G29: 334
B30: Deferred revenue | E30: 379 | G30: 336
B31: Short-term debt | E31: 675 | G31: 616
B32: Other accrued liabilities | E32: 256 | G32: 440
C33: Total current liabilities | E33: =SUM(E28:E32) -> 1,892 | G33: =SUM(G28:G32) -> 2,080
A35: Long-term debt | E35: 1,787 | G35: 1,791
A36: Retirement and post-retirement benefits | E36: 354 | G36: 360
A37: Other long-term liabilities | E37: 620 | G37: 473
C38: Total liabilities | E38: =SUM(E33:E37) -> 4,653 | G38: =SUM(G33:G37) -> 4,704
A40: Total Equity:
B41: Stockholders' equity:
B42: Preferred stock; $0.01 par value; 125 million
C43: shares authorized; none issued and outstanding | E43: — | G43: —
B44: Common stock; $0.01 par value, 2 billion
C45: shares authorized; 310 million shares at January 31, 2020
C46: and 309 million shares at October 31, 2019, issued | E46: 3 | G46: 3
B47: Additional paid-in capital | E47: 5,293 | G47: 5,277
B48: Accumulated earnings (deficit) | E48: 73 | G48: (18)
B49: Accumulated other comprehensive loss | E49: (521) | G49: (514)
C50: Total stockholders' equity | E50: =SUM(E43:E49) -> 4,848 | G50: =SUM(G43:G49) -> 4,748
D51: Total liabilities and equity | E51: =E38+E50 -> $9,501 | G51: =G38+G50 -> $9,452
A55: The preliminary balance sheet is estimated based on our current information.
A57: Page 2

Sheet Cash Flow
A1: AGILENT TECHNOLOGIES, INC.
A2: CONDENSED CONSOLIDATED STATEMENT OF CASH FLOWS
A3: (In millions)
A4: (Unaudited)
A5: PRELIMINARY
F8: Three Months Ended
F9: January 31, | H9: January 31,
F10: 2020 | H10: 2019
A11: Cash flows from operating activities:
B12: Net income | F12: $197 | H12: $504
A14: Adjustments to reconcile net income to net cash provided by (used in) operating activities:
B15: Depreciation and amortization | F15: 79 | H15: 54
B16: Share-based compensation | F16: 27 | H16: 24
B17: Excess and obsolete inventory related charges | F17: 4 | H17: 4
B18: Gain on fair value investment | F18: (16) | H18: —
B19: Other non-cash expenses, net | F19: 2 | H19: 3
B20: Changes in assets and liabilities:
C21: Accounts receivable, net | F21: (40) | H21: (22)
C22: Inventory | F22: (32) | H22: (12)
C23: Accounts payable | F23: (15) | H23: (16)
C24: Employee compensation and benefits | F24: (80) | H24: (71)
C25: Other assets and liabilities | F25: (185) | H25: (255)
A26: Net cash provided by (used in) operating activities (a) | F26: =SUM(F12:F25) -> (59) | H26: =SUM(H12:H25) -> 213
A28: Cash flows from investing activities:
B29: Investments in property, plant and equipment | F29: (34) | H29: (39)
B30: Payment to acquire fair value investments | F30: (1) | H30: (2)
B31: Payment in exchange for convertible note | F31: — | H31: (1)
B32: Acquisition of businesses and intangible assets, net of cash acquired | F32: — | H32: (248)
A33: Net cash used in investing activities | F33: =SUM(F29:F32) -> (35) | H33: =SUM(H29:H32) -> (290)
A35: Cash flows from financing activities:
B36: Issuance of common stock under employee stock plans | F36: 32 | H36: 22
B37: Payment of taxes related to net share settlement of equity awards | F37: (33) | H37: (13)
B38: Payment of dividends | F38: (56) | H38: (52)
B39: Proceeds from revolving credit facility | F39: 432 | H39: —
B40: Repayment of revolving credit facility | F40: (372) | H40: —
B41: Repayment of finance lease | F41: (4) | H41: —
B42: Purchase of non-controlling interest | F42: — | H42: (4)
B43: Treasury stock repurchases | F43: (60) | H43: (75)
A44: Net cash used in financing activities | F44: =SUM(F36:F43) -> (61) | H44: =SUM(H36:H43) -> (122)
A46: Effect of exchange rate movements | F46: (1) | H46: 9
A48: Net decrease in cash, cash equivalents and restricted cash | F48: =F26+F33+F44+F46 -> (156) | H48: =H26+H33+H44+H46 -> (190)
A50: Cash, cash equivalents and restricted cash at beginning of period | F50: 1,388 | H50: 2,254
A52: Cash, cash equivalents and restricted cash at end of period | F52: =SUM(F48:F50) -> $1,232 | H52: =SUM(H48:H50) -> $2,064
A55: Reconciliation of cash, cash equivalents and restricted cash to the condensed consolidated balance sheet:
B57: Cash and cash equivalents | F57: $1,226 | H57: $2,057
B58: Restricted cash, included in other assets | F58: 6 | H58: 7
B59: Total cash, cash equivalents and restricted cash | F59: =SUM(F57:F58) -> $1,232 | H59: =SUM(H57:H58) -> $2,064
A62: (a) Cash payments included in operating activities:
B64: Income tax payments (refunds), net | F64: $241 | H64: $21
B65: Interest payments | F65: $17 | H65: $25
A69: The preliminary cash flow is estimated based on our current information.
A72: Page 3

Sheet Net Income & EPS Non-GAAP
A1: AGILENT TECHNOLOGIES, INC.
A2: NON-GAAP NET INCOME AND DILUTED EPS RECONCILIATIONS
A3: (In millions, except per share amounts)
A4: (Unaudited)
A5: PRELIMINARY
E7: Three Months Ended | K7: Three Months Ended
E8: January 31, | K8: January 31,
E9: 2020 | F9: Diluted EPS | H9: 2019 | I9: Diluted EPS | K9: 2019 | L9: Diluted EPS | N9: 2018 | O9: Diluted EPS
A11: GAAP net income | E11: $197 | F11: $0.63 | H11: $504 | I11: $1.57
B12: Non-GAAP adjustments:
C13: Intangible amortization | E13: 48 | F13: 0.15 | H13: 28 | I13: 0.09
C14: Transformational initiatives | E14: 13 | F14: 0.04 | H14: 5 | I14: 0.02
C15: Acquisition and integration costs | E15: 13 | F15: 0.04 | H15: 10 | I15: 0.03
C16: NASD site costs | E16: — | F16: — | H16: 2 | I16: 0.01
C17: Other | E17: 6 | F17: 0.02 | H17: 1 | I17: —
C18: Tax benefit on intra-entity asset transfer | E18: — | F18: — | H18: (299) | I18: (0.93)
C19: Adjustment for taxes (a) | E19: (25) | F19: (0.07) | H19: (7) | I19: (0.03)
A20: Non-GAAP net income | E20: =SUM(E11:E19) -> $252 | F20: =SUM(F11:F19) -> $0.81 | H20: =SUM(H11:H19) -> $244 | I20: =SUM(I11:I19) -> $0.76 | K20: =SUM(K11:K19) -> 0 | L20: =SUM(L11:L19) -> 0 | N20: =SUM(N11:N19) -> 0 | O20: =SUM(O11:O19) -> 0
A22: (a) The adjustment for taxes excludes tax benefits that management believes are not directly related to on-going operations and which are either isolated or cannot be expected to occur again with any regularity or predictability. For the three months ended January 31, 2020 and 2019, management used a non-GAAP effective tax rate of 15.5% and 17%, respectively.
A24: We provide non-GAAP net income and non-GAAP net income per share amounts in order to provide meaningful supplemental information regarding our operational performance and our prospects for the future. These supplemental measures exclude, among other things, charges related to amortization of intangibles, transformational initiatives, acquisition and integration costs, NASD site costs, and tax benefit on intra-entity asset transfer.
B25: Transformational initiatives include expenses associated with targeted cost reduction activities such as manufacturing transfers including costs to move manufacturing due to new tariffs and tariff remediation actions, small site consolidations, legal entity and other business reorganizations, insourcing or outsourcing of activities. Such costs may include move and relocation costs, one-time termination benefits and other one-time reorganization costs. Included in this category are also expenses associated with company programs to transform our product lifecycle management (PLM) system, human resources and financial systems.
B26: Acquisition and Integration costs include all incremental expenses incurred to investigate or effect a business combination. Such acquisition costs may include advisory, legal, accounting, valuation, and other professional or consulting fees. Such integration costs may include expenses directly related to integration of business and facility operations, the transfer of assets and intellectual property, information technology systems and infrastructure and other employee-related costs.
B27: NASD site costs include all the costs related to the expansion of our manufacturing of nucleic acid active pharmaceutical ingredients incurred prior to the commencement of commercial manufacturing.
B28: Other includes certain legal costs, settlements and an unrealized gain related to our equity securities in addition to other miscellaneous adjustments.
B29: Tax benefit on intra-entity asset transfer relates to our operations in Singapore along with our application of the new accounting rules for income tax consequences of intra-entity transfer of assets as adopted on November 1, 2018.
A31: Our management uses non-GAAP measures to evaluate the performance of our core businesses, to estimate future core performance and to compensate employees. Since management finds this measure to be useful, we believe that our investors benefit from seeing our results “through the eyes” of management in addition to seeing our GAAP results. This information facilitates our management’s internal comparisons to our historical operating results as well as to the operating results of our competitors.
A33: Our management recognizes that items such as amortization of intangibles can have a material impact on our cash flows and/or our net income. Our GAAP financial statements including our statement of cash flows portray those effects. Although we believe it is useful for investors to see core performance free of special items, investors should understand that the excluded items are actual expenses that may impact the cash available to us for other uses. To gain a complete picture of all effects on the company’s profit and loss from any and all events, management does (and investors should) rely upon the GAAP income statement. The non-GAAP numbers focus instead upon the core business of the company, which is only a subset, albeit a critical one, of the company’s performance.
A35: Readers are reminded that non-GAAP numbers are merely a supplement to, and not a replacement for, GAAP financial measures. They should be read in conjunction with the GAAP financial measures. It should be noted as well that our non-GAAP information may be different from the non-GAAP information provided by other companies.
A37: The preliminary non-GAAP net income and diluted EPS reconciliation is estimated based on our current information.
A40: Page 4

Sheet Segment Results
A1: AGILENT TECHNOLOGIES, INC.
A2: SEGMENT INFORMATION
A3: (In millions, except where noted)
A4: (Unaudited)
A5: PRELIMINARY
A7: Life Sciences and Applied Markets Group
C8: Q1'20 | E8: Q1'19
A9: Revenue | C9: $638 | E9: $607
A10: Gross Margin, % | C10: 60.2% | E10: 62.1%
A11: Income from Operations | C11: $158 | E11: $159
A12: Operating margin, % | C12: 24.8% | E12: 26.1%
A15: Diagnostics and Genomics Group
C16: =C8 -> Q1'20 | E16: =E8 -> Q1'19
A17: Revenue | C17: $249 | E17: $235
A18: Gross Margin, % | C18: 51.7% | E18: 54.0%
A19: Income from Operations | C19: $34 | E19: $33
A20: Operating margin, % | C20: 13.5% | E20: 14.0%
A23: Agilent CrossLab Group
C24: =C16 -> Q1'20 | E24: =E16 -> Q1'19
A25: Revenue | C25: $470 | E25: $442
A26: Gross Margin, % | C26: 51.8% | E26: 51.3%
A27: Income from Operations | C27: $119 | E27: $105
A28: Operating margin, % | C28: 25.4% | E28: 23.9%
A33: Life Sciences and Applied Markets Group
C34: Q1'19 | E34: Q1'18
A35: Revenue
A36: Gross Margin, %
A37: Income from Operations
A38: Operating margin, %
A41: Diagnostics and Genomics Group
C42: =C34 -> Q1'19 | E42: =E34 -> Q1'18
A43: Revenue
A44: Gross Margin, %
A45: Income from Operations
A46: Operating margin, %
A49: Agilent CrossLab Group
C50: =C34 -> Q1'19 | E50: =E34 -> Q1'18
A51: Revenue
A52: Gross Margin, %
A53: Income from Operations
A54: Operating margin, %
A58: Income from operations reflect the results of our reportable segments under Agilent's management reporting system which are not necessarily in conformity with GAAP financial measures. Income from operations of our reporting segments exclude, among other things, charges related to amortization of intangibles, transformational initiatives, acquisition and integration costs, and NASD site costs.
A60: Readers are reminded that non-GAAP numbers are merely a supplement to, and not a replacement for, GAAP financial measures. They should be read in conjunction with the GAAP financial measures. It should be noted as well that our non-GAAP information may be different from the non-GAAP information provided by other companies.
A62: The preliminary segment information is estimated based on our current information.
A65: Page 5

Sheet Core Revenue by Segment (QTD)
A1: AGILENT TECHNOLOGIES, INC.
A2: RECONCILIATIONS OF REVENUE BY SEGMENT EXCLUDING
A3: ACQUISITIONS, DIVESTITURES AND THE IMPACT OF CURRENCY ADJUSTMENTS (CORE)
A4: (in millions)
A5: (Unaudited)
A6: PRELIMINARY
B8: Year-over-Year
B10: GAAP
D11: Year-over-Year
A12: GAAP Revenue by Segment | B12: Q1'20 | C12: Q1'19 | D12: % Change
A14: Life Sciences and Applied Markets Group | B14: $638 | C14: $607 | D14: 5%
A16: Diagnostics and Genomics Group | B16: 249 | C16: 235 | D16: 6%
A18: Agilent CrossLab Group | B18: 470 | C18: 442 | D18: 6%
A20: Agilent | B20: =SUM(B14:B19) -> $1,357 | C20: =SUM(C14:C19) -> $1,284 | D20: 6%
B24: Non-GAAP (excluding Acquisitions & Divestitures) | F24: Year-over-Year at Constant Currency (a)
D25: Year-over-Year | F25: Year-over-Year | G25: Percentage Point Impact from Currency | I25: Current Quarter Currency Impact (b)
A26: Non GAAP Revenue by Segment | B26: =B12 -> Q1'20 | C26: =C12 -> Q1'19 | D26: % Change | F26: % Change
A28: Life Sciences and Applied Markets Group | B28: $590 | C28: $607 | D28: (3%) | F28: (2%) | G28: -1 ppt | I28: $(2)
A30: Diagnostics and Genomics Group | B30: 249 | C30: 235 | D30: 6% | F30: 7% | G30: -1 ppt | I30: (1)
A32: Agilent CrossLab Group | B32: 470 | C32: 442 | D32: 6% | F32: 7% | G32: -1 ppt | I32: (2)
A34: Agilent (Core) | B34: =SUM(B28:B33) -> $1,309 | C34: =SUM(C28:C33) -> $1,284 | D34: 2% | F34: 2% | G34: — | I34: =SUM(I28:I33) -> $(5)
A38: We compare the year-over-year change in revenue excluding the effect of recent acquisitions and divestitures and foreign currency rate fluctuations to assess the performance of our underlying business.
A40: (a) The constant currency year-over-year growth percentage is calculated by recalculating all periods in the comparison period at the foreign currency exchange rates used for accounting during the last month of the current quarter, and then using those revised values to calculate the year-over-year percentage change.
A42: (b) The dollar impact from the current quarter currency impact is equal to the total year-over-year dollar change less the constant currency year-over-year change.
A44: The preliminary reconciliation of GAAP revenue adjusted for recent acquisitions and divestitures and impact of currency is estimated based on our current information.
A50: Page 6

Sheet Core Revenue by Segment (YTD) (hidden)
A1: AGILENT TECHNOLOGIES, INC.
A2: RECONCILIATIONS OF REVENUE BY SEGMENT EXCLUDING
A3: ACQUISITIONS, DIVESTITURES AND THE IMPACT OF CURRENCY ADJUSTMENTS (CORE)
A4: (in millions)
A5: (Unaudited)
A6: PRELIMINARY
B8: Year-over-Year
B10: GAAP
D11: Year-over-Year
A12: GAAP Revenue by Segment | B12: FY18 | C12: FY17 | D12: % Change
A14: Life Sciences and Applied Markets Group
A16: Diagnostics and Genomics Group
A18: Agilent CrossLab Group
A20: Agilent | B20: =SUM(B14:B19) -> 0 | C20: =SUM(C14:C19) -> 0
B25: Non-GAAP (excluding Acquisitions & Divestitures) | F25: Year-over-Year at Constant Currency (a)
D26: Year-over-Year | F26: Year-over-Year | G26: Percentage Point Impact from Currency | I26: Current Year Currency Impact (b)
A27: Non GAAP Revenue by Segment | B27: =B12 -> FY18 | C27: =C12 -> FY17 | D27: % Change | F27: % Change
A29: Life Sciences and Applied Markets Group
A31: Diagnostics and Genomics Group
A33: Agilent CrossLab Group
A35: Agilent (Core) | B35: =SUM(B29:B34) -> 0 | C35: =SUM(C29:C34) -> 0 | I35: =SUM(I29:I34) -> 0
A39: We compare the year-over-year change in revenue excluding the effect of recent acquisitions and divestitures and foreign currency rate fluctuations to assess the performance of our underlying business.
A41: (a) The constant currency year-over-year growth percentage is calculated by recalculating all periods in the comparison period at the foreign currency exchange rates used for accounting during the last month of the current quarter, and then using those revised values to calculate the year-over-year percentage change.
A43: (b) The dollar impact from the current year currency impact is equal to the total year-over-year dollar change less the constant currency year-over-year change.
A45: The preliminary reconciliation of GAAP revenue adjusted for recent acquisitions and divestitures and impact of currency is estimated based on our current information.
A51: Page 7
